bitfinex-derivatives/quotes_ETHF0:USTF0_20251008
["timestamp","ask_amount","ask_price","bid_price","bid_amount"]
[1759923296542,0.85441203,4491.0,4490.9,0.5382]
[1759923296938,0.63041203,4491.0,4490.9,0.5382]
[1759923297144,0.67821203,4491.0,4490.9,0.7602]
[1759923299348,0.22711203,4491.0,4490.9,0.7602]
[1759923299549,0.00281203,4491.0,4490.9,0.7602]
[1759923301453,0.22711203,4491.0,4490.9,0.7602]
[1759923306161,0.00281203,4491.0,4490.9,0.7602]
[1759923308359,0.2243,4491.1,4491.0,0.5752]
[1759923308672,0.2813,4492.4,4492.3,0.4452]
[1759923308955,3.31126646,4492.4,4492.3,0.4452]
[1759923309160,3.53526646,4492.4,4492.3,0.7602]
[1759923309360,3.5372238,4492.4,4492.3,0.76238944]
[1759923309567,0.00195734,4492.4,4492.3,0.76238944]
[1759923312663,0.2243,4493.3,4493.2,0.4452]
[1759923312867,0.2833,4493.3,4493.2,0.7602]
[1759923313066,3.22548934,4493.3,4493.2,0.7602]
[1759923313361,0.2243,4493.3,4493.2,0.7602]
[1759923313568,0.2260627,4493.3,4493.2,0.7602]
[1759923313768,0.2760627,4493.3,4493.2,0.7602]
[1759923314059,0.2260627,4493.3,4493.2,0.7602]
[1759923314263,0.0017627,4493.3,4493.2,0.7602]
[1759923319259,0.2183627,4493.3,4493.2,0.5382]
[1759923319465,0.4335627,4493.3,4493.2,0.5382]
[1759923319768,0.6089627,4493.3,4493.2,0.5382]
[1759923320263,0.4335627,4493.3,4493.2,0.5382]
[1759923320565,0.2183627,4493.3,4493.2,0.7475]
[1759923321069,0.4423627,4493.3,4493.2,0.7475]
[1759923321270,0.6575627,4493.3,4493.2,0.7475]
[1759923322267,0.4335627,4493.3,4493.2,0.7475]
[1759923322467,0.5135627,4493.3,4493.2,0.7475]
[1759923322867,0.6575627,4493.3,4493.2,0.7475]
[1759923327672,0.4423627,4493.3,4493.2,0.7475]
[1759923330075,0.6575627,4493.3,4493.2,0.7475]
[1759923330276,0.8329627,4493.3,4493.2,0.7475]
[1759923330575,0.6575627,4493.3,4493.2,0.7475]
[1759923331469,0.2257627,4493.3,4493.2,0.7475]
[1759923331874,0.2247627,4493.3,4493.2,0.7475]
[1759923332276,0.0017627,4493.3,4493.2,0.7475]
[1759923332477,0.0377627,4493.3,4493.2,0.7475]
[1759923333174,0.0017627,4493.3,4493.2,0.7475]
[1759923333370,0.0367627,4493.3,4493.2,0.7475]
[1759923337781,0.2533627,4493.3,4493.2,0.7475]
[1759923337979,0.6439627,4493.3,4493.2,0.315]
[1759923338781,3.50749703,4493.3,4493.2,0.315]
[1759923338981,4.04724655,4493.3,4493.1,0.3174]
[1759923339176,0.6072,4493.2,4493.1,0.3174]
[1759923339485,3.50840989,4493.2,4493.1,0.3174]
[1759923339677,0.6072,4492.6,4492.5,0.3174]
[1759923339878,0.8302,4492.6,4492.3,0.31958944]
[1759923340183,0.6072,4492.5,4492.4,0.3174]
[1759923341679,0.6072,4492.5,4492.3,0.00218944]
[1759923341881,3.56486164,4492.5,4492.3,0.00218944]
[1759923344683,0.8205,4492.4,4492.3,0.00218944]
[1759923345087,4.28672613,4492.4,4492.3,0.00218944]
[1759923345887,9.28672613,4492.4,4492.3,0.00218944]
[1759923346286,9.11062613,4492.4,4491.6,0.3346]
[1759923346482,0.2277,4491.2,4491.1,0.3126]
[1759923346681,0.6628,4491.2,4491.1,0.5252]
[1759923347286,0.6628,4491.2,4491.1,0.73832666]
[1759923348986,0.224,4491.2,4491.1,0.73832666]
[1759923349985,0.6628,4491.2,4491.1,0.31452666]
[1759923350185,0.6628,4491.2,4491.1,0.73832666]
[1759923351283,0.8367,4491.2,4491.1,0.52712666]
[1759923351892,0.6628,4491.2,4491.1,0.52712666]
[1759923352289,0.1739,4492.5,4491.1,0.42572666]
[1759923352590,0.6127,4492.5,4492.0,0.1248]
[1759923352790,0.6127,4492.5,4492.4,0.3126]
[1759923352989,0.8367,4492.5,4492.4,0.3126]
[1759923353193,0.6127,4492.1,4492.0,0.1248]
[1759923353493,3.77081273,4492.1,4492.0,0.1248]
[1759923353693,3.77081273,4492.1,4492.0,0.4374]
[1759923354992,0.4016,4491.6,4491.5,0.1248]
[1759923355198,0.6127,4491.6,4491.5,0.1248]
[1759923355493,0.1739,4491.5,4491.1,0.00192666]
[1759923355693,0.4388,4491.3,4491.2,0.5252]
[1759923355993,0.4388,4491.3,4491.2,0.7364]
[1759923358397,5.925,4494.5,4491.5,0.8612]
[1759923358600,0.1739,4492.8,4491.6,0.3126]
[1759923358801,3.06819234,4492.4,4492.3,0.4238]
[1759923359002,0.4388,4492.4,4492.3,0.7364]
[1759923359204,3.27929234,4492.4,4492.3,0.7364]
[1759923360605,3.50329234,4492.4,4492.3,0.7364]
[1759923363005,0.1739,4493.1,4492.3,0.7364]
[1759923363203,0.1739,4493.1,4492.0,0.1248]
[1759923363204,0.6127,4493.1,4493.0,0.4374]
[1759923363407,0.4388,4493.1,4493.0,0.8612]
[1759923363708,3.51269813,4493.1,4493.0,0.8612]
[1759923363909,3.18389813,4493.1,4493.0,0.8612]
[1759923364109,3.41159813,4493.1,4493.0,0.8612]
[1759923364907,3.62269813,4493.1,4493.0,0.65]
[1759923365107,3.79659813,4493.1,4493.0,0.3126]
[1759923365309,0.4388,4492.7,4492.6,0.3126]
[1759923365511,0.4388,4492.7,4492.5,0.1248]
[1759923365512,0.4388,4492.4,4492.3,0.2]
[1759923365710,0.6127,4492.4,4492.3,0.5126]
[1759923367811,3.56967443,4492.4,4492.3,0.2]
[1759923368215,8.56967443,4492.4,4492.3,0.2]
[1759923369108,3.79367443,4492.4,4492.3,0.5126]
[1759923369405,3.79367443,4492.4,4492.3,0.2]
[1759923373816,4.3327072,4492.4,4492.3,0.2]
[1759923374213,9.3327072,4492.4,4492.3,0.2]
[1759923376220,9.3327072,4492.4,4491.0,0.1248]
[1759923376221,9.1588072,4492.4,4491.3,0.3126]
[1759923376515,0.53903277,4492.3,4491.3,0.5214]
[1759923376704,3.18097443,4492.4,4491.4,0.3124]
[1759923376705,0.53903277,4492.2,4491.4,0.3124]
[1759923376906,0.76303277,4492.1,4491.5,0.1258]
[1759923377212,2.95277866,4492.0,4491.5,0.1258]
[1759923377610,0.224,4491.9,4491.5,0.1258]
[1759923377815,0.224,4491.9,4491.6,0.2088]
[1759923378116,2.87535134,4491.8,4491.6,0.3124]
[1759923380015,2.87535134,4491.8,4491.5,0.1258]
[1759923380208,2.87535134,4491.8,4491.6,0.3124]
[1759923380406,2.87535134,4491.8,4491.5,0.1258]
[1759923381214,2.87535134,4491.8,4491.6,0.3124]
[1759923381719,2.87535134,4491.8,4491.5,0.1258]
[1759923382018,0.224,4491.7,4491.6,0.3124]
[1759923382518,3.15234978,4491.7,4491.6,0.3124]
[1759923383614,2.92834978,4491.7,4491.6,0.3124]
[1759923383823,3.15234978,4491.7,4491.6,0.748]
[1759923384019,0.224,4491.7,4491.6,0.748]
[1759923384221,3.12077083,4491.7,4491.6,0.748]
[1759923390922,2.89677083,4491.7,4491.6,0.748]
[1759923391417,1.18792011,4493.4,4491.7,0.3124]
[1759923391619,35.50221552,4493.2,4491.7,0.3124]
[1759923391823,2.8654784,4492.9,4491.7,0.3124]
[1759923392023,0.76321552,4492.8,4491.7,0.3124]
[1759923392223,0.53921552,4492.7,4492.6,0.3124]
[1759923392425,3.62869392,4492.7,4492.6,0.3124]
[1759923392623,0.76321552,4492.7,4492.6,0.3124]
[1759923392923,3.68875484,4492.7,4492.6,0.3124]
[1759923394224,3.68875484,4492.7,4492.6,0.5212]
[1759923395722,3.46475484,4492.7,4492.6,0.5212]
[1759923395921,3.46475484,4492.7,4492.6,0.3124]
[1759923397527,3.46475484,4492.7,4492.1,0.3124]
[1759923397730,0.53921552,4492.6,4492.1,0.3124]
[1759923398022,2.92684528,4492.5,4492.1,0.3124]
[1759923398229,2.92684528,4492.5,4492.2,0.3124]
[1759923398733,1.18792011,4493.4,4492.2,0.3124]
[1759923398930,0.53960431,4493.2,4492.2,0.3124]
[1759923399126,0.53960431,4493.1,4492.2,0.3124]
[1759923399428,3.44000934,4493.0,4492.2,0.3124]
[1759923399628,0.53960431,4492.9,4492.2,0.3124]
[1759923399828,0.53960431,4492.8,4492.2,0.5212]
[1759923400023,0.53960431,4492.7,4492.0,0.1258]
[1759923400221,0.53960431,4492.6,4492.1,0.3124]
[1759923400418,0.53960431,4492.5,4492.2,0.5212]
[1759923400731,2.83331059,4492.4,4492.1,0.3124]
[1759923400924,2.83331059,4492.4,4492.1,0.2219]
[1759923401118,2.83331059,4492.5,4492.3,0.5588]
[1759923401321,1.18792011,4493.4,4492.3,0.2219]
[1759923401531,0.5395872,4493.2,4492.6,0.3369]
[1759923401732,3.43472397,4493.1,4492.5,0.1273]
[1759923401931,0.5395872,4493.0,4492.6,0.3369]
[1759923402135,0.5395872,4492.9,4492.5,0.1273]
[1759923402433,2.89513677,4492.8,4492.6,0.3369]
[1759923402628,0.5395872,4492.7,4492.5,0.4642]
[1759923402932,2.93527138,4492.6,4492.5,0.4642]
[1759923403131,3.47485858,4492.6,4492.5,0.4642]
[1759923403432,0.5395872,4492.6,4492.5,0.4642]
[1759923403823,3.41061312,4492.6,4492.5,0.4642]
[1759923408337,0.0017627,4493.3,4493.0,0.3478]
[1759923408529,0.53964425,4493.2,4493.1,0.3095]
[1759923408731,3.3911734,4493.2,4493.1,0.3095]
[1759923409536,3.3911734,4493.2,4493.1,0.5272]
[1759923410531,3.3911734,4493.2,4493.1,0.7474]
[1759923411132,2.85152915,4493.2,4493.1,0.7474]
[1759923416339,0.0017627,4493.3,4493.1,0.4379]
[1759923416539,0.0017627,4493.3,4493.2,0.7474]
[1759923419336,0.54074359,4493.3,4493.2,0.7474]
[1759923429153,0.0017627,4493.3,4493.2,0.7474]
[1759923430951,2.9029424,4493.3,4492.5,0.1273]
[1759923431251,0.53905979,4493.2,4492.6,0.3095]
[1759923431454,0.53905979,4493.1,4492.1,0.3095]
[1759923431750,0.53905979,4493.0,4492.1,0.3095]
[1759923431954,0.53905979,4492.9,4492.1,0.3095]
[1759923432153,0.53905979,4492.8,4492.1,0.3095]
[1759923432354,0.53905979,4492.7,4492.1,0.3095]
[1759923432656,0.53905979,4492.7,4491.0,0.1301]
[1759923432657,0.53905979,4492.6,4491.8,0.3095]
[1759923432957,0.53905979,4492.5,4491.8,0.3095]
[1759923433251,3.37529222,4492.4,4492.1,0.5272]
[1759923433455,0.53905979,4492.3,4492.2,0.5272]
[1759923433754,3.37236821,4492.3,4492.2,0.7474]
[1759923434753,3.37211662,4492.3,4492.2,0.7474]
[1759923435158,2.83330842,4492.3,4492.2,0.7474]
[1759923435558,2.87728958,4493.2,4492.3,0.3095]
[1759923435759,0.53882208,4493.1,4492.5,0.1301]
[1759923435950,0.53882208,4493.0,4492.6,0.3095]
[1759923436257,0.53882208,4492.9,4492.6,0.323]
[1759923436445,0.53882208,4492.8,4492.6,0.323]
[1759923436650,0.53882208,4492.7,4492.6,0.323]
[1759923436851,3.39691805,4492.7,4492.6,0.323]
[1759923437054,0.53882208,4492.7,4492.6,0.323]
[1759923437357,3.39691805,4492.7,4492.6,0.323]
[1759923441860,2.85809597,4492.7,4492.6,0.323]
[1759923442161,0.53851751,4492.7,4492.6,0.323]
[1759923442463,3.48253233,4492.7,4492.6,0.323]
[1759923449669,9.67045244,4492.7,4491.1,0.32492666]
[1759923449860,0.53851751,4492.6,4491.2,0.323]
[1759923450267,2.93227491,4492.5,4491.2,0.323]
[1759923450570,0.53851751,4492.4,4491.2,0.323]
[1759923451068,2.83233167,4492.3,4492.1,0.323]
[1759923451268,2.83233167,4492.3,4492.0,0.3575]
[1759923451269,2.83233167,4492.3,4492.2,0.76]
[1759923451771,2.83233167,4492.6,4492.5,0.6805]
[1759923452071,3.43613715,4492.6,4492.5,0.6805]
[1759923453476,3.43613715,4492.6,4492.5,0.456]
[1759923455774,3.43613715,4492.6,4492.0,0.133]
[1759923455979,0.53866287,4492.5,4492.1,0.323]
[1759923456481,2.95049604,4492.4,4492.3,0.323]
[1759923456673,2.95049604,4492.4,4492.3,0.5475]
[1759923457068,2.90815664,4493.2,4492.4,0.323]
[1759923457273,0.53900394,4493.1,4492.6,0.323]
[1759923457471,0.53900394,4493.0,4492.1,0.323]
[1759923457676,0.53900394,4492.9,4491.6,0.323]
[1759923457981,2.87400074,4492.8,4491.6,0.5475]
[1759923458182,0.53900394,4492.7,4491.5,0.456]
[1759923458381,0.53900394,4492.7,4491.6,0.323]
[1759923458678,2.87400074,4492.6,4491.6,0.323]
[1759923458872,0.53900394,4492.5,4491.6,0.323]
[1759923459181,2.94352226,4492.4,4491.6,0.323]
[1759923459379,0.53900394,4492.3,4491.3,0.323]
[1759923459681,0.53900394,4492.3,4491.1,0.00192666]
[1759923459682,2.84045106,4492.2,4491.1,0.00192666]
[1759923459871,0.53900394,4492.1,4491.1,0.00192666]
[1759923460271,2.84045106,4492.0,4491.1,0.00192666]
[1759923460477,0.53900394,4491.9,4491.1,0.00192666]
[1759923460871,2.91234856,4491.8,4491.1,0.00192666]
[1759923461074,0.53900394,4491.7,4491.1,0.00192666]
[1759923461471,2.91234856,4491.6,4491.1,0.00192666]
[1759923461672,0.53900394,4491.5,4491.1,0.00192666]
[1759923461982,2.86724311,4491.4,4491.1,0.00192666]
[1759923462172,0.53900394,4491.3,4491.1,0.00192666]
[1759923462572,2.86724311,4491.2,4490.4,0.3336]
[1759923462772,0.53900394,4491.1,4490.4,0.3336]
[1759923463177,2.83982056,4491.0,4490.4,0.3336]
[1759923463378,0.53900394,4490.9,4490.1,0.3336]
[1759923463578,2.83982056,4491.0,4490.2,0.3336]
[1759923463880,1.18792011,4491.9,4490.2,0.3336]
[1759923463881,2.92068639,4490.8,4490.2,0.3336]
[1759923464080,1.18792011,4491.9,4490.2,0.3336]
[1759923464379,2.92068639,4490.7,4490.1,0.00278656]
[1759923464585,0.53828732,4490.6,4490.1,0.00278656]
[1759923464779,1.18792011,4491.5,4490.1,0.00278656]
[1759923464979,2.89948771,4490.6,4490.1,0.00278656]
[1759923465278,1.58389348,4492.0,4490.1,0.00278656]
[1759923465279,2.89948771,4491.4,4490.1,0.00278656]
[1759923465589,0.53795437,4491.3,4490.1,0.00278656]
[1759923465885,0.53795437,4491.2,4490.1,0.00278656]
[1759923466087,0.53795437,4491.1,4490.1,0.33638656]
[1759923466281,0.53795437,4491.0,4490.1,0.33638656]
[1759923466487,0.53795437,4490.9,4490.1,0.00278656]
[1759923466788,3.45661129,4490.8,4490.1,0.00278656]
[1759923466980,0.53795437,4490.7,4490.1,0.00278656]
[1759923467177,2.91865692,4490.9,4490.1,0.00278656]
[1759923467380,2.91865692,4490.6,4490.1,0.00278656]
[1759923467581,2.91865692,4490.7,4490.1,0.31308656]
[1759923467891,2.94408549,4491.6,4490.1,0.00278656]
[1759923468085,0.5374429,4491.5,4490.1,0.00278656]
[1759923468385,2.94408549,4490.6,4490.1,0.00278656]
[1759923468590,1.18792011,4491.8,4490.1,0.00278656]
[1759923468793,2.91731784,4490.5,4490.2,0.3103]
[1759923468980,2.91731784,4491.3,4490.2,0.3103]
[1759923469180,0.53726742,4491.2,4490.2,0.3103]
[1759923469481,3.45458526,4491.1,4490.1,0.00278656]
[1759923469678,0.53726742,4491.0,4490.1,0.00278656]
[1759923469880,0.53726742,4490.9,4490.1,0.00278656]
[1759923470081,2.93465131,4490.9,4490.1,0.00278656]
[1759923470286,2.93465131,4491.0,4490.1,0.00278656]
[1759923470479,0.53701354,4490.9,4490.1,0.00278656]
[1759923470686,2.93465131,4491.8,4490.1,0.00278656]
[1759923470882,2.90695916,4490.8,4490.1,0.00278656]
[1759923471277,2.90695916,4490.9,4490.2,0.3103]
[1759923471484,2.90695916,4491.7,4490.2,0.3103]
[1759923471787,2.90695916,4490.7,4490.2,0.3103]
[1759923471982,2.85016861,4491.6,4490.2,0.3103]
[1759923472289,2.85016861,4490.7,4490.2,0.3103]
[1759923472485,1.18792011,4491.9,4490.2,0.3103]
[1759923472790,2.85016861,4491.4,4490.2,0.3103]
[1759923472987,0.53683819,4491.3,4490.3,0.5202]
[1759923473190,0.53683819,4491.2,4490.5,0.1361]
[1759923473488,0.53683819,4491.1,4490.5,0.1361]
[1759923473689,2.90364997,4491.6,4490.2,0.3103]
[1759923473889,2.83619765,4491.0,4490.2,0.3103]
[1759923474387,2.83619765,4491.6,4490.2,0.3103]
[1759923474588,0.53680317,4491.5,4490.2,0.3103]
[1759923474788,2.83619765,4490.9,4490.2,0.3103]
[1759923475089,2.88559015,4491.4,4490.2,0.3103]
[1759923475284,2.88559015,4490.8,4490.2,0.3103]
[1759923475486,2.88559015,4491.0,4490.2,0.3103]
[1759923475687,2.88559015,4491.7,4490.2,0.3103]
[1759923475886,0.53667619,4491.6,4490.1,0.31308656]
[1759923476086,2.86387262,4490.9,4490.1,0.31308656]
[1759923476486,2.86387262,4491.4,4490.1,0.31308656]
[1759923476692,2.8330147,4490.8,4490.1,0.31308656]
[1759923476991,2.8330147,4491.2,4490.1,0.31308656]
[1759923477191,2.8330147,4490.9,4490.1,0.00278656]
[1759923477392,0.53672733,4490.8,4490.1,0.00278656]
[1759923477592,2.8330147,4491.0,4490.1,0.00278656]
[1759923477794,2.8330147,4490.7,4490.1,0.00278656]
[1759923477989,2.88869812,4491.5,4490.1,0.00278656]
[1759923478191,2.88869812,4490.8,4490.1,0.00278656]
[1759923478388,0.53675519,4490.7,4490.1,0.00278656]
[1759923478589,0.53675519,4490.6,4490.1,0.00278656]
[1759923478788,0.53675519,4490.5,4490.1,0.00278656]
[1759923479295,2.83127533,4490.4,4490.1,0.00278656]
[1759923479895,2.84732311,4491.3,4490.1,0.00278656]
[1759923480088,0.5367984,4491.2,4490.1,0.00278656]
[1759923480289,0.5367984,4491.1,4490.1,0.00278656]
[1759923480590,0.5367984,4491.0,4490.1,0.00278656]
[1759923480799,0.5367984,4490.9,4490.1,0.00278656]
[1759923480994,0.5367984,4490.8,4490.1,0.00278656]
[1759923481190,0.5367984,4490.7,4490.1,0.00278656]
[1759923481391,0.5367984,4490.6,4490.1,0.00278656]
[1759923481586,0.5367984,4490.5,4490.1,0.00278656]
[1759923481793,2.94076998,4490.6,4490.1,0.00278656]
[1759923482099,2.91780622,4490.4,4490.1,0.00278656]
[1759923482398,2.91780622,4490.5,4490.1,0.00278656]
[1759923482698,2.91780622,4490.3,4490.1,0.00278656]
[1759923483094,2.91357991,4490.4,4490.1,0.00278656]
[1759923483290,2.91357991,4490.2,4490.1,0.00278656]
[1759923483588,2.91357991,4490.3,4490.1,0.00278656]
[1759923483788,2.91357991,4490.4,4490.1,0.00278656]
[1759923483996,2.91397166,4491.2,4490.1,0.00278656]
[1759923484194,0.53731281,4491.1,4490.1,0.00278656]
[1759923484395,0.53731281,4491.0,4490.1,0.00278656]
[1759923484586,0.53731281,4490.9,4490.1,0.00278656]
[1759923484990,1.18792011,4491.3,4490.1,0.00278656]
[1759923484991,3.48593786,4490.8,4490.1,0.00278656]
[1759923485194,0.53731281,4490.7,4489.2,0.3103]
[1759923485392,0.53731281,4490.7,4488.9,0.3103]
[1759923485594,2.94862505,4490.6,4488.9,0.3103]
[1759923485793,0.53731281,4490.5,4488.6,0.3103]
[1759923485999,1.18792011,4490.3,4488.3,0.3103]
[1759923486201,1.18792011,4489.8,4488.3,0.00202155]
[1759923486402,1.18792011,4489.7,4488.3,0.00202155]
[1759923486602,1.72523292,4489.6,4488.3,0.00202155]
[1759923487002,2.83225485,4489.5,4488.3,0.00202155]
[1759923487203,0.53731281,4489.4,4488.3,0.00202155]
[1759923487401,0.53731281,4489.4,4487.0,0.1361]
[1759923487602,1.18792011,4488.9,4487.0,0.4464]
[1759923487898,4.41614833,4489.3,4487.0,0.4464]
[1759923487899,1.72523292,4488.8,4487.0,0.4464]
[1759923488202,0.53731281,4488.7,4487.0,0.4464]
[1759923488407,0.53731281,4488.6,4487.0,0.44831095]
[1759923488599,0.53731281,4488.5,4487.0,0.44831095]
[1759923488795,0.53731281,4488.4,4487.0,0.00191095]
[1759923489103,2.85713628,4488.3,4487.0,0.13801095]
[1759923489304,0.53731281,4488.2,4487.0,0.00191095]
[1759923489503,0.53731281,4488.1,4487.0,0.00191095]
[1759923489704,0.53731281,4488.0,4487.0,0.00191095]
[1759923489904,0.53731281,4487.9,4487.0,0.00191095]
[1759923490104,0.53731281,4487.8,4487.0,0.00191095]
[1759923490304,0.53731281,4487.7,4486.1,0.3103]
[1759923490505,0.53731281,4487.6,4486.1,0.3103]
[1759923490806,3.4854072,4487.5,4486.2,0.2099]
[1759923491000,0.53731281,4487.4,4486.3,0.3103]
[1759923491206,0.53731281,4487.3,4486.3,0.31310068]
[1759923491407,2.94809439,4487.3,4486.3,0.31310068]
[1759923491611,2.94809439,4487.4,4486.3,0.31310068]
[1759923491906,0.535879,4487.3,4486.5,0.1361]
[1759923492108,1.37712184,4488.2,4486.5,0.1361]
[1759923492305,2.95986778,4487.3,4486.3,0.00280068]
[1759923492498,0.53587018,4487.2,4486.3,0.00280068]
[1759923492700,0.53587018,4487.1,4486.3,0.00280068]
[1759923492901,0.53587018,4487.0,4486.3,0.00280068]
[1759923493104,0.53546994,4486.9,4486.3,0.00280068]
[1759923493302,2.9628869,4487.1,4486.3,0.00280068]
[1759923493503,2.9628869,4486.8,4486.3,0.00280068]
[1759923493700,1.18792011,4487.9,4486.3,0.00280068]
[1759923493701,2.9628869,4486.9,4486.3,0.00280068]
[1759923493899,1.18792011,4487.9,4486.3,0.00280068]
[1759923494100,2.89068762,4487.6,4486.3,0.00280068]
[1759923494305,2.89068762,4486.8,4486.3,0.00280068]
[1759923494504,2.89068762,4487.8,4486.3,0.00280068]
[1759923494707,2.89068762,4487.4,4486.3,0.00280068]
[1759923494908,2.89068762,4486.7,4486.5,0.1361]
[1759923495211,2.95278768,4487.2,4486.8,0.2099]
[1759923495404,2.95278768,4487.2,4487.1,0.3103]
[1759923495607,2.95278768,4487.2,4487.0,0.1361]
[1759923495608,2.95278768,4487.3,4487.0,0.1361]
[1759923496010,2.89848746,4487.4,4487.1,0.2099]
[1759923496211,2.89848746,4487.4,4487.3,0.3103]
[1759923496410,2.89848746,4488.0,4487.0,0.346]
[1759923496600,2.89848746,4487.4,4487.3,0.5456]
[1759923496805,2.89848746,4487.4,4487.3,0.7664]
[1759923497006,2.92199808,4488.4,4487.4,0.3249]
[1759923497208,0.53461694,4488.3,4487.6,0.5457]
[1759923497408,2.92199808,4488.8,4487.7,0.5457]
[1759923497613,2.92199808,4488.2,4487.8,0.3249]
[1759923497910,2.8939021,4488.6,4487.6,0.5457]
[1759923498119,0.53461824,4488.5,4487.6,0.5457]
[1759923498308,0.53461824,4488.4,4487.7,0.3249]
[1759923498508,0.53461824,4488.3,4487.7,0.3249]
[1759923498910,2.83327922,4488.2,4487.5,0.1272]
[1759923499109,2.83327922,4488.2,4487.6,0.3249]
[1759923499310,2.83327922,4488.4,4487.7,0.5457]
[1759923499510,0.53472169,4488.3,4487.7,0.5457]
[1759923499712,2.83327922,4488.3,4487.7,0.5457]
[1759923500117,2.89252767,4489.1,4487.7,0.5457]
[1759923500317,2.89252767,4488.2,4487.8,0.3249]
[1759923500521,2.89252767,4488.2,4487.5,0.348]
[1759923500719,2.89252767,4488.5,4487.6,0.2208]
[1759923500914,2.88579899,4488.1,4487.7,0.2208]
[1759923501120,2.88579899,4488.1,4487.9,0.3249]
[1759923501325,2.88579899,4488.3,4487.5,0.1272]
[1759923501621,1.37579591,4489.2,4487.5,0.1272]
[1759923501622,2.88579899,4488.0,4487.6,0.3249]
[1759923501822,2.88579899,4488.5,4487.6,0.3249]
[1759923502120,2.873375,4488.1,4487.6,0.3249]
[1759923502322,2.873375,4488.4,4487.6,0.3249]
[1759923502621,0.1878758,4489.2,4487.5,0.1272]
[1759923502622,3.40836316,4488.3,4487.5,0.1272]
[1759923502815,0.53498816,4488.2,4487.6,0.3249]
[1759923503015,0.53498816,4488.1,4487.6,0.3249]
[1759923503210,2.84713695,4488.8,4487.6,0.3249]
[1759923503416,2.84713695,4488.0,4487.6,0.3249]
[1759923503618,2.84713695,4488.1,4487.5,0.1272]
[1759923503814,0.53512026,4488.0,4487.5,0.4521]
[1759923504016,1.18792011,4489.0,4487.5,0.4521]
[1759923504211,2.85698675,4487.9,4487.0,0.3569]
[1759923504412,0.53528403,4487.8,4487.1,0.3249]
[1759923504611,0.53528403,4487.7,4487.1,0.3249]
[1759923504816,2.94866937,4487.7,4487.1,0.3249]
[1759923505209,0.53543687,4487.6,4487.1,0.3249]
[1759923505410,2.94866937,4487.6,4487.1,0.3249]
[1759923505816,1.18792011,4488.6,4487.1,0.3249]
[1759923506017,2.92149913,4488.4,4487.0,0.1361]
[1759923506216,0.53543597,4488.3,4486.8,0.3249]
[1759923506423,0.53543597,4488.2,4486.8,0.3249]
[1759923506717,0.53543597,4488.2,4486.4,0.3249]
[1759923506718,1.72335608,4488.2,4486.4,0.3249]
[1759923506922,1.18792011,4488.0,4486.4,0.3249]
[1759923507117,0.53543597,4487.9,4486.1,0.3249]
[1759923507316,4.68065206,4487.9,4486.1,0.3249]
[1759923507525,1.18792011,4487.6,4485.8,0.3249]
[1759923507830,4.59077731,4487.5,4485.8,0.3249]
[1759923508031,1.18792011,4487.3,4485.8,0.3249]
[1759923508327,3.4028572,4487.2,4485.8,0.3249]
[1759923508532,0.53543597,4487.1,4485.8,0.3249]
[1759923508930,2.86154228,4487.0,4485.8,0.3249]
[1759923509125,0.53543597,4486.9,4485.8,0.3249]
[1759923509521,2.86154228,4486.8,4485.8,0.3249]
[1759923509732,0.53543597,4486.7,4485.8,0.3249]
[1759923510028,2.9232418,4486.6,4485.8,0.3249]
[1759923510332,0.53543597,4486.5,4485.8,0.3249]
[1759923510631,2.9232418,4486.4,4485.8,0.3249]
[1759923510832,3.45867777,4486.4,4485.8,0.3249]
[1759923511234,0.53543597,4486.4,4485.8,0.3249]
[1759923511529,3.4206426,4486.4,4485.8,0.3249]
[1759923513033,3.4206426,4486.4,4485.5,0.1272]
[1759923513234,3.4206426,4486.4,4486.0,0.3249]
[1759923514033,3.4206426,4486.4,4485.5,0.1272]
[1759923514235,3.4206426,4486.4,4485.8,0.3249]
[1759923514630,3.4206426,4486.4,4484.6,0.3249]
[1759923514931,0.53543597,4486.3,4484.8,0.3249]
[1759923515137,0.53543597,4486.3,4486.1,0.3249]
[1759923515330,2.8654067,4486.2,4486.1,0.3249]
[1759923515530,3.40084267,4486.2,4486.1,0.7664]
[1759923515725,3.40084267,4486.2,4486.1,0.54726934]
[1759923515936,0.53895643,4486.2,4486.1,0.54726934]
[1759923516136,3.38401056,4486.2,4486.1,0.32646934]
[1759923519643,3.38401056,4486.2,4486.1,0.00156934]
[1759923522150,3.38401056,4486.2,4486.1,0.33136934]
[1759923522444,3.38401056,4486.2,4486.1,0.54966934]
[1759923522639,3.38401056,4486.2,4486.1,0.33136934]
[1759923523146,3.38401056,4486.2,4486.1,0.77786934]
[1759923525044,2.84505413,4486.2,4486.1,0.77786934]
[1759923526047,2.84505413,4486.2,4486.1,0.33136934]
[1759923528849,2.84505413,4486.2,4486.1,0.54966934]
[1759923529247,2.84505413,4486.2,4486.1,0.76806934]
[1759923529852,2.84505413,4486.2,4486.1,0.54966934]
[1759923531255,3.38455348,4486.2,4486.1,0.54966934]
[1759923532248,2.84505413,4486.2,4486.1,0.54966934]
[1759923532449,3.38487581,4486.2,4486.1,0.54966934]
[1759923534753,3.38487581,4486.2,4486.1,0.33136934]
[1759923538561,3.38487581,4486.2,4486.1,0.00156934]
[1759923541266,3.38487581,4486.2,4486.1,0.34246934]
[1759923541960,3.38487581,4486.2,4486.1,0.78436934]
[1759923542661,0.00219061,4486.6,4486.1,5.78436934]
[1759923542863,0.00219061,4486.6,4486.5,0.919]
[1759923544854,1.18792011,4487.8,4486.6,0.3409]
[1759923545057,1.18792011,4488.0,4487.6,0.5644]
[1759923545256,2.87764301,4487.7,4487.6,0.5644]
[1759923545460,1.18792011,4488.1,4487.6,0.5644]
[1759923545659,2.87764301,4487.9,4487.5,0.3597]
[1759923545959,0.00252492,4487.9,4487.5,0.1362]
[1759923546161,0.00252492,4487.9,4487.6,0.3409]
[1759923546363,2.95796802,4487.8,4487.5,0.1362]
[1759923547059,2.95796802,4487.8,4487.6,0.3409]
[1759923547565,2.95796802,4487.8,4487.5,0.1362]
[1759923547760,2.95796802,4487.8,4487.6,0.2235]
[1759923548063,0.00252492,4487.9,4487.8,0.7828]
[1759923550261,0.00252492,4487.9,4487.8,5.7828]
[1759923550468,0.00252492,4487.9,4487.8,0.7828]
[1759923552663,0.03878723,4489.6,4487.9,0.3409]
[1759923552858,0.03878723,4489.6,4488.1,0.3409]
[1759923553069,2.86997984,4489.5,4488.1,0.3409]
[1759923553666,2.87160236,4489.5,4488.1,0.3409]